bitfinex-derivatives/quotes_SOLF0:USTF0_20260211
["timestamp","ask_amount","ask_price","bid_price","bid_amount"]
[1770838996212,44.85045131,80.026,79.93,10.76822253]
[1770838996412,44.85045131,80.026,79.931,99.82]
[1770838996612,44.85045131,80.026,79.95,10.76822253]
[1770838997612,44.85045131,80.026,79.944,100.06]
[1770838997809,44.9858834,80.006,79.947,11.2647]
[1770838998120,44.9858834,79.999,79.914,100.58]
[1770838998807,45.06799728,79.994,79.941,11.2655]
[1770838999007,45.06799728,79.994,79.93,10.76822253]
[1770838999209,45.06799728,80.019,79.93,10.76822253]
[1770838999708,45.06796489,80.016,79.955,11.2635]
[1770839000312,45.06796489,80.016,79.962,11.2625]
[1770839000517,44.9315883,80.014,79.962,11.2625]
[1770839003014,44.9315883,80.014,79.953,11.2637]
[1770839003216,44.93101109,80.005,79.953,11.2637]
[1770839004111,44.93098546,80.003,79.937,11.266]
[1770839004310,44.93098546,80.003,79.93,10.76822253]
[1770839004513,44.93059366,80.039,79.95,10.76822253]
[1770839004715,44.93059366,80.02,79.95,10.76822253]
[1770839005718,44.93059366,80.02,79.966,11.262]
[1770839006321,45.26022339,80.017,79.951,99.78]
[1770839006512,45.26022339,80.017,79.93,10.76822253]
[1770839007222,45.26022339,80.007,79.958,11.2631]
[1770839007525,45.26022339,80.007,79.93,10.76822253]
[1770839007720,45.26022339,80.007,79.973,11.261]
[1770839008016,45.26022339,80.007,79.955,99.78]
[1770839009924,45.26022339,80.007,79.964,11.2623]
[1770839010519,7.27042982,80.046,79.955,99.78]
[1770839010714,52.52815592,80.046,79.98,10.76822253]
[1770839011314,52.52815592,80.046,80.006,11.2564]
[1770839011831,52.52815592,80.046,79.981,149.52]
[1770839012023,52.52815592,80.046,79.976,158.42]
[1770839012324,52.52815592,80.046,79.95,10.76822253]
[1770839012528,45.44374397,80.039,79.951,140.56]
[1770839012822,45.44374397,80.035,79.984,11.2594]
[1770839013022,45.44374397,80.035,79.951,140.56]
[1770839013418,45.44374397,80.035,79.95,10.71270809]
[1770839013620,45.44370839,80.025,79.968,11.2617]
[1770839014228,45.44370839,80.023,79.961,11.2627]
[1770839014630,45.44370839,80.023,79.943,126.1]
[1770839014829,45.54062485,79.986,79.927,11.2674]
[1770839015027,45.54062485,79.986,79.911,132.26]
[1770839015221,45.54062485,79.986,79.932,11.2668]
[1770839015422,45.54062485,79.986,79.911,132.26]
[1770839016026,45.54060152,80.019,79.92,10.71270809]
[1770839016329,45.32718484,79.999,79.92,10.71270809]
[1770839016831,45.32718484,79.999,79.921,169.34]
[1770839017224,45.32718484,79.999,79.922,168.9]
[1770839017426,56.58468484,79.999,79.933,11.2667]
[1770839017827,45.32715342,80.031,79.974,11.2609]
[1770839018025,45.32715342,80.031,79.96,10.71270809]
[1770839018229,45.32715342,80.031,79.961,99.76]
[1770839018425,45.38225546,80.049,79.997,11.2576]
[1770839018725,45.38225546,80.049,79.98,10.71270809]
[1770839018926,45.38225546,80.045,79.98,10.71270809]
[1770839019632,45.38225546,80.045,79.981,99.76]
[1770839019832,45.38225546,80.045,79.996,11.2577]
[1770839020029,45.38225546,80.045,79.981,99.76]
[1770839021035,45.45821667,80.039,79.963,116.68]
[1770839021333,45.45821667,80.039,79.999,11.2573]
[1770839022334,45.45821667,80.039,79.99,11.2585]
[1770839023031,45.45821667,80.039,79.96,10.71270809]
[1770839023228,45.45821667,80.039,79.961,99.74]
[1770839023731,45.43513591,80.028,79.961,99.74]
[1770839024226,45.43513591,80.028,79.946,99.74]
[1770839024736,45.68382085,80.024,79.963,11.2624]
[1770839025734,45.68377769,80.018,79.953,11.2638]
[1770839026034,45.68377769,80.018,79.939,99.96]
[1770839026931,99.74,80.047,79.936,11.2663]
[1770839026932,45.69131876,79.997,79.936,11.2663]
[1770839027334,45.69131876,79.997,79.93,10.71270809]
[1770839028837,45.69131876,79.997,79.952,11.2639]
[1770839031932,45.69131876,79.997,79.944,11.2651]
[1770839032134,45.69131876,79.997,79.93,10.71270809]
[1770839032939,45.69131876,79.997,79.951,11.2641]
[1770839034337,45.69131876,79.997,79.943,11.2653]
[1770839034834,46.03567011,80.017,79.95,10.71270809]
[1770839035137,46.03567011,80.017,79.944,111.62]
[1770839035429,10.71270809,80.02,79.93,26.26570621]
[1770839035430,46.03567011,80.015,79.948,11.2645]
[1770839035634,46.03567011,80.015,79.937,134.2]
[1770839036642,46.10912221,80.009,79.947,11.2646]
[1770839036839,46.10912221,80.009,79.937,134.2]
[1770839037342,46.10912221,80.004,79.946,11.2647]
[1770839037742,46.10910587,80.002,79.953,11.2638]
[1770839038241,46.10910587,80.002,79.92,15.55299812]
[1770839038543,46.10947963,79.998,79.921,126.84]
[1770839039426,46.10947963,79.998,79.921,142.39299812]
[1770839039631,46.10944979,79.993,79.921,126.84]
[1770839040032,22.5064,80.029,79.891,22.5452]
[1770839040033,46.10944979,79.979,79.9,146.78]
[1770839040232,46.10944979,79.979,79.895,15.46228965]
[1770839040437,46.10944979,79.979,79.896,182.1]
[1770839041047,46.01702284,79.976,79.92,11.2685]
[1770839042241,46.01699773,79.973,79.92,11.2685]
[1770839042444,46.01699773,79.973,79.913,11.2695]
[1770839042630,46.01699773,79.973,79.896,182.1]
[1770839043731,46.01699773,79.973,79.897,231.0]
[1770839044638,46.01699773,79.973,79.898,231.26]
[1770839045238,57.27809773,79.973,79.922,11.2681]
[1770839046342,46.04031026,80.006,79.93,10.71270809]
[1770839046539,46.04031026,80.006,79.931,199.22]
[1770839046838,46.04031026,80.006,79.953,11.2638]
[1770839047039,46.04031026,80.006,79.931,199.22]
[1770839047743,46.04031026,80.006,79.959,11.263]
[1770839051340,46.04031026,80.006,79.966,11.262]
[1770839051944,46.04031026,80.006,79.949,161.66]
[1770839052444,46.04031026,80.006,79.95,230.98]
[1770839052645,46.04031026,80.006,79.977,11.2604]
[1770839054848,46.04031026,80.006,79.97,11.2615]
[1770839057044,46.04031026,80.006,79.932,15.46228965]
[1770839057235,46.04031026,80.006,79.92,10.71270809]
[1770839057236,46.04031026,80.006,79.928,99.76]
[1770839057445,46.04031026,80.006,79.94,10.71270809]
[1770839057642,46.04031026,80.006,79.974,11.2608]
[1770839057837,46.18573894,80.028,79.974,11.2608]
[1770839058245,11.2536,80.026,79.974,11.2608]
[1770839058446,46.13652657,80.025,79.974,11.2608]
[1770839058647,46.13652657,80.025,79.963,11.2624]
[1770839059748,46.13651211,80.015,79.963,11.2624]
[1770839060745,46.15863926,80.013,79.963,11.2624]
[1770839062046,46.15818038,80.01,79.963,11.2624]
[1770839063356,46.15781843,80.002,79.953,11.2637]
[1770839063749,46.15781843,79.97,79.907,15.46228965]
[1770839063947,46.15781843,79.97,79.9,10.71270809]
[1770839064150,56.87052652,79.97,79.887,99.76]
[1770839065053,46.1742027,79.953,79.895,11.2719]
[1770839066155,46.1742027,79.953,79.902,11.271]
[1770839067147,46.25995,79.949,79.887,99.76]
[1770839067454,46.26101004,79.964,79.887,99.76]
[1770839067659,46.26101004,79.964,79.888,123.32]
[1770839068158,46.26101004,79.962,79.912,11.2696]
[1770839071054,46.19831833,79.958,79.912,11.2696]
[1770839071356,46.19831833,79.958,79.901,11.2711]
[1770839072853,46.05659493,79.954,79.901,11.2711]
[1770839073358,46.05659493,79.954,79.907,11.2703]
[1770839077358,45.94610554,79.951,79.9,11.2712]
[1770839077752,45.94610554,79.951,79.894,110.36]
[1770839078760,45.94610554,79.951,79.912,11.2696]
[1770839080060,40.31303544,79.941,79.872,22.5505]
[1770839080661,40.31303544,79.941,79.856,37.64]
[1770839080851,10.73559089,79.95,79.856,37.64]
[1770839080852,40.32696198,79.938,79.857,152.72]
[1770839081361,40.32696198,79.938,79.892,11.2724]
[1770839085761,40.22909499,79.936,79.85,10.73559089]
[1770839085961,40.22909499,79.936,79.857,197.18]
[1770839086361,40.23052536,79.927,79.857,197.18]
[1770839087354,40.23052536,79.927,79.858,229.62]
[1770839088364,40.23052536,79.927,79.859,230.24]
[1770839088566,40.23052536,79.927,79.877,11.2746]
[1770839088859,40.23052536,79.927,79.859,230.24]
[1770839089263,39.2305863,79.923,79.87,11.2755]
[1770839089768,39.2305863,79.923,79.879,11.2742]
[1770839090164,39.2305863,79.923,79.859,230.24]
[1770839091261,11.2683,79.922,79.873,11.2751]
[1770839091465,39.13570954,79.921,79.873,11.2751]
[1770839091859,39.13570954,79.921,79.879,11.2743]
[1770839093958,39.13570954,79.921,79.858,230.9]
[1770839094467,39.13570954,79.921,79.859,230.7]
[1770839094665,38.95490192,79.964,79.878,22.5489]
[1770839095460,38.95505673,79.954,79.901,11.2711]
[1770839095663,38.95505673,79.954,79.87,10.73559089]
[1770839096064,38.95505673,79.94,79.893,11.2722]
[1770839098173,39.16508675,79.955,79.89,10.73559089]
[1770839098370,39.16508675,79.955,79.891,119.44]
[1770839099167,39.16508675,79.955,79.89,10.73559089]
[1770839099370,39.16508675,79.955,79.891,170.0]
[1770839100767,39.21115328,79.953,79.896,11.2718]
[1770839100967,39.21115328,79.953,79.891,170.0]
[1770839101368,39.21115328,79.953,79.894,11.2722]
[1770839101569,39.21135093,79.939,79.85,10.73559089]
[1770839101964,39.21135093,79.924,79.84,22.5595]
[1770839102164,39.21135093,79.924,79.84,33.29509089]
[1770839102369,39.16560247,79.939,79.899,11.2714]
[1770839102670,15.52905378,80.006,79.86,10.73559089]
[1770839102671,39.16560247,79.954,79.889,99.84]
[1770839102968,39.16560247,79.954,79.89,99.84]
[1770839103174,39.16560247,79.954,79.908,11.2701]
[1770839103761,39.16560247,79.954,79.89,99.84]
[1770839103974,39.16578379,79.977,79.9,10.73559089]
[1770839104366,39.16578379,79.977,79.901,109.5]
[1770839104771,39.16578379,79.977,79.924,11.2679]
[1770839105370,10.73559089,79.98,79.913,11.2694]
[1770839105371,39.16310794,79.97,79.913,11.2694]
[1770839106372,10.73559089,79.98,79.913,11.2694]
[1770839106373,39.16310794,79.966,79.913,11.2694]
[1770839106672,39.16310794,79.966,79.919,11.2686]
[1770839107977,39.12873374,79.964,79.909,11.27]
[1770839108379,39.09821695,79.959,79.86,10.73559089]
[1770839108575,39.09821695,79.959,79.861,104.42]
[1770839109176,39.09821695,79.959,79.86,10.73559089]
[1770839109480,39.09821695,79.959,79.862,125.9]
[1770839109882,39.09836779,79.941,79.862,125.9]
[1770839110079,39.09836779,79.941,79.864,15.46228965]
[1770839110469,39.09836779,79.941,79.897,11.2717]
[1770839112276,39.09836779,79.941,79.887,11.2731]
[1770839112575,39.09836779,79.941,79.865,231.6]
[1770839112576,39.09836779,79.941,79.866,15.46228965]
[1770839113181,39.02857302,79.933,79.866,15.46228965]
[1770839113375,39.02857302,79.933,79.855,15.46228965]
[1770839113680,39.02857302,79.933,79.852,15.46228965]
[1770839114282,39.02871365,79.932,79.873,11.2751]
[1770839114780,39.04064201,79.946,79.88,10.73559089]
[1770839114979,39.04064201,79.946,79.886,15.46228965]
[1770839115282,39.04064201,79.946,79.881,15.46228965]
[1770839115478,39.04064201,79.946,79.886,15.46228965]
[1770839115786,39.0407806,79.96,79.891,15.46228965]
[1770839116081,39.0407806,79.96,79.9,10.73559089]
[1770839116283,39.0407806,79.96,79.901,232.62]
[1770839116484,39.0407806,79.96,79.924,11.2679]
[1770839117684,38.90222742,79.974,79.924,11.2679]
[1770839117880,38.90222742,79.974,79.915,232.76]
[1770839118087,38.90222742,79.997,79.92,10.73559089]
[1770839118583,38.90222742,79.997,79.94,11.2656]
[1770839119688,38.5931617,79.989,79.906,180.72]
[1770839119877,38.5931617,79.989,79.907,189.48]
[1770839120282,38.5931617,79.989,79.92,10.73559089]
[1770839120784,38.5931617,79.989,79.937,11.266]
[1770839121484,38.5931617,79.989,79.92,10.73559089]
[1770839121683,10.73559089,80.03,79.94,10.73559089]
[1770839121889,10.73559089,80.03,79.941,99.82]
[1770839122289,11.2543,80.021,79.962,11.2625]
[1770839122495,11.2543,80.021,79.941,99.82]
[1770839123192,11.2543,80.021,79.942,122.42]
[1770839123385,11.2543,80.021,79.96,11.2628]
[1770839123695,28.74463732,80.011,79.96,11.2628]
[1770839124292,28.74463732,80.011,79.968,11.2617]
[1770839124598,28.66747252,80.026,79.96,10.73559089]
[1770839124796,28.66747252,80.026,79.961,171.94]
[1770839124985,28.66747252,80.026,79.986,11.2591]
[1770839125183,28.66747252,80.026,79.961,171.94]
[1770839125385,28.66747252,80.026,79.915,488.23459014]
[1770839125386,28.66747252,80.026,79.951,163.56]
[1770839125593,28.66747252,80.026,79.976,11.2606]
[1770839125998,28.66747252,80.026,79.961,99.8]
[1770839126482,28.66747252,80.026,79.984,11.2595]
[1770839126889,28.66747252,80.026,79.962,146.68]
[1770839127789,28.03290103,80.024,79.967,11.2618]
[1770839127994,28.03290103,80.024,79.962,146.68]
[1770839128292,28.03290103,80.024,79.94,10.73559089]
[1770839128596,27.97786848,80.02,79.94,10.73559089]
[1770839128784,27.97786848,80.02,79.941,175.0]
[1770839128983,27.97786848,80.02,79.976,11.2605]
[1770839129587,27.97786848,80.02,79.96,10.73559089]
[1770839130197,27.97751846,80.045,79.98,10.73559089]
[1770839130498,27.97751846,80.045,79.981,232.8]
[1770839131197,27.97751846,80.045,79.98,10.73559089]
[1770839131395,27.97751846,80.045,79.988,11.2589]
[1770839131894,27.97751846,80.045,79.98,10.73559089]
[1770839132299,27.80135914,80.044,79.96,10.73559089]
[1770839132501,27.80135914,80.044,79.979,99.78]
[1770839132687,27.80135914,80.009,79.91,10.73559089]
[1770839132892,27.80135914,79.979,79.927,11.2675]
[1770839133389,27.80135914,79.979,79.934,11.2665]
[1770839133801,27.80094387,80.009,79.92,233.1]
[1770839134487,27.66793919,79.996,79.92,233.1]
[1770839134800,10.73559089,80.01,79.92,233.1]
[1770839134801,27.66793919,79.989,79.92,233.1]
[1770839135302,27.66747578,80.029,79.93,10.72498013]
[1770839135494,27.66747578,80.029,79.95,10.72498013]
[1770839135888,27.66747578,80.029,79.951,190.06]
[1770839136092,27.66747578,80.029,79.97,10.72498013]
[1770839136695,27.66747578,80.029,79.983,11.2596]
[1770839137099,27.66747578,80.029,79.951,190.06]
[1770839137287,27.66747578,80.029,79.952,217.74]
[1770839137694,27.49589272,80.045,79.97,10.72498013]
[1770839137894,27.49589272,80.043,79.987,11.2589]
[1770839138104,27.49589272,80.043,79.97,10.72498013]
[1770839138701,10.72498013,80.03,79.967,190.8]
[1770839138901,27.68272511,80.029,79.95,10.72498013]
[1770839140601,7.27042982,80.046,79.95,10.72498013]
[1770839140602,27.7130218,80.019,79.95,10.72498013]
[1770839141400,27.7130218,80.019,79.982,11.2597]
[1770839141902,27.71261262,80.039,79.99,11.2586]
[1770839142304,27.71261262,80.039,79.975,99.76]
[1770839142700,27.71261262,80.039,79.989,11.2587]
[1770839143502,27.71261262,80.039,79.997,11.2577]
[1770839144899,27.71261262,80.039,79.981,102.54]
[1770839144900,27.71261262,80.039,79.988,11.2588]
[1770839145203,27.69492913,80.029,79.91,15.46228965]
[1770839145400,27.69492913,80.029,79.93,10.72498013]
[1770839145601,27.6945328,80.007,79.949,11.2644]
[1770839146201,27.6945328,79.999,79.939,11.2658]
[1770839146509,27.7859456,79.989,79.91,10.72498013]
[1770839147012,27.7859456,79.989,79.914,234.4]
[1770839147598,27.78559572,79.988,79.914,234.4]
[1770839147801,27.78559572,79.988,79.91,10.72498013]
[1770839147802,27.78559572,79.988,79.915,235.1]
[1770839148206,9.05137053,79.969,79.875,18.21077319]
[1770839148405,9.46943215,79.949,79.875,18.21077319]
[1770839148705,10.72498013,79.93,79.858,18.21077319]
[1770839148912,9.54863592,79.929,79.858,18.21077319]
[1770839149109,11.2695,79.914,79.858,18.21077319]
[1770839149305,9.54559723,79.889,79.784,18.21077319]
[1770839149508,9.54559723,79.849,79.784,18.21077319]
[1770839149810,9.62427298,79.829,79.78,2.1798843]
[1770839150010,9.62427298,79.829,79.753,18.21077319]
[1770839150210,7.44335725,79.786,79.711,18.21077319]
[1770839150509,6.09793488,79.809,79.731,19.22800134]
[1770839150715,6.09793488,79.809,79.736,19.22800134]
[1770839151009,6.27723337,79.799,79.717,19.22800134]
[1770839151201,6.27723337,79.779,79.696,19.22800134]
[1770839151401,6.2640894,79.759,79.677,19.22800134]
[1770839151807,6.2640894,79.759,79.671,479.77940779]
[1770839151808,6.34156475,79.737,79.67,236.6]
[1770839152005,6.34156475,79.737,79.671,19.22800134]
[1770839152202,6.34156475,79.737,79.601,175.9912]
[1770839152203,6.34156475,79.737,79.65,10.72498013]
[1770839152408,9.57916119,79.735,79.647,19.22800134]
[1770839152708,9.57916119,79.735,79.661,19.22800134]
[1770839152907,10.72498013,79.78,79.701,19.22800134]
[1770839153104,10.72498013,79.78,79.7,10.72498013]
[1770839153105,9.65561915,79.779,79.703,19.22800134]
[1770839153509,9.656426,79.759,79.689,19.22800134]
[1770839153711,9.656426,79.779,79.689,19.22800134]
[1770839154112,9.73186353,79.77,79.689,19.22800134]
[1770839154411,9.73186353,79.77,79.701,19.22800134]
[1770839155310,10.11828842,79.79,79.701,19.22800134]
[1770839155508,10.11828842,79.79,79.703,19.22800134]
[1770839155707,10.11828842,79.79,79.702,143.72]
[1770839155708,10.11828842,79.759,79.684,19.22800134]
[1770839155905,10.19207978,79.758,79.684,19.22800134]
[1770839156107,10.19207978,79.779,79.693,19.22800134]
[1770839156305,10.19207978,79.779,79.703,19.22800134]
[1770839156505,8.01892307,79.799,79.721,19.22800134]
[1770839156905,8.09149533,79.797,79.721,19.22800134]
[1770839157111,8.09149533,79.779,79.696,19.22800134]
[1770839157811,8.09149533,79.779,79.701,19.22800134]
[1770839158209,10.72498013,79.8,79.721,19.22800134]
[1770839158210,8.16082941,79.8,79.721,19.22800134]
[1770839158412,7.1757731,79.799,79.721,19.22800134]
[1770839158607,7.1757731,79.799,79.7,10.72498013]
[1770839158608,7.1757731,79.799,79.709,99.92]
[1770839158807,7.1757731,79.779,79.701,19.22800134]
[1770839159018,7.24703592,79.759,79.68,19.22800134]
[1770839159221,10.72498013,79.76,79.68,19.22800134]
[1770839159222,7.24703592,79.756,79.68,19.22800134]
[1770839159513,7.24703592,79.756,79.681,19.22800134]
[1770839159917,7.31297527,79.739,79.659,19.22800134]
[1770839160114,10.72498013,79.72,79.64,19.22800134]
[1770839160308,7.1950145,79.739,79.659,19.22800134]
[1770839160509,7.1950145,79.739,79.673,11.3034]
[1770839160814,7.1950145,79.739,79.661,19.22800134]
[1770839161319,7.1950145,79.739,79.66,10.72498013]
[1770839161320,7.1950145,79.739,79.674,19.22800134]
[1770839161520,17.98502205,79.76,79.674,19.22800134]
[1770839161817,7.26004192,79.759,79.675,195.86]
[1770839162120,10.72498013,79.76,79.679,19.22800134]
[1770839162121,7.3287477,79.757,79.679,19.22800134]
[1770839162320,111.06,79.786,79.691,19.22800134]
[1770839162321,7.34203239,79.777,79.691,19.22800134]
[1770839163014,7.40981319,79.759,79.67,19.22800134]
[1770839163522,7.40981319,79.759,79.672,19.22800134]
[1770839164016,7.47256402,79.739,79.658,21.41140745]
[1770839164217,7.47256402,79.759,79.671,19.22800134]
[1770839164523,275.5576,79.798,79.671,19.22800134]
[1770839164524,18.14092458,79.74,79.671,19.22800134]
[1770839164726,7.41594445,79.74,79.673,19.22800134]
[1770839165017,7.4822603,79.739,79.658,21.41140745]
[1770839165209,7.4822603,79.739,79.668,19.22800134]
[1770839165407,7.47787404,79.758,79.681,19.22800134]
[1770839165613,7.47787404,79.779,79.681,19.22800134]
[1770839165811,7.47787404,79.779,79.701,19.22800134]
[1770839166014,7.54367875,79.799,79.724,19.22800134]
[1770839166416,7.29318309,79.829,79.741,19.22800134]
[1770839166616,7.29318309,79.829,79.685,175.8053]
[1770839166617,7.29318309,79.809,79.725,100.02]
[1770839166821,7.29318309,79.809,79.72,29.95298147]
[1770839167016,18.64213808,79.808,79.734,11.2947]
[1770839167213,7.35783808,79.808,79.735,19.22800134]
[1770839167818,7.35316047,79.829,79.75,19.22800134]
[1770839168319,7.41698785,79.819,79.74,10.72498013]
[1770839168526,7.41698785,79.819,79.741,19.22800134]
[1770839168720,18.80136025,79.839,79.741,19.22800134]
[1770839169122,18.80136025,79.839,79.761,19.22800134]
[1770839169725,7.51686596,79.853,79.761,19.22800134]
[1770839170118,11.2782,79.852,79.79,11.2869]
[1770839170326,7.57899421,79.872,79.791,19.22800134]
[1770839171018,11.2765,79.864,79.797,11.2858]
[1770839171421,7.73307769,79.859,79.791,19.22800134]
[1770839171819,11.2773,79.858,79.792,11.2865]
[1770839172015,134.7,79.894,79.78,10.72498013]
[1770839172016,18.51906498,79.88,79.793,19.22800134]
[1770839172721,7.7749592,79.859,79.793,19.22800134]
[1770839173021,11.278,79.853,79.774,11.2891]
[1770839173213,7.83538511,79.852,79.775,19.22800134]
[1770839173419,7.83538511,79.852,79.781,19.22800134]
[1770839173618,7.83538511,79.852,79.785,11.2876]
[1770839174224,7.83538511,79.852,79.795,11.2861]
[1770839174519,7.83538511,79.852,79.76,10.72498013]
[1770839174520,7.28655054,79.871,79.796,19.22800134]
[1770839174821,7.34552577,79.865,79.798,11.2857]
[1770839175031,7.34552577,79.865,79.796,19.22800134]
[1770839175321,11.2774,79.858,79.797,11.2858]
[1770839175527,7.34057289,79.857,79.78,10.72498013]
[1770839175733,7.34057289,79.857,79.781,19.22800134]
[1770839176820,11.2777,79.856,79.787,19.22800134]
[1770839177019,7.41040517,79.879,79.787,19.22800134]
[1770839177726,7.41040517,79.879,79.809,19.22800134]
[1770839178132,7.46265659,79.899,79.809,19.22800134]
[1770839178427,7.46265659,79.899,79.844,11.2792]
[1770839178630,7.45787274,79.917,79.845,19.22800134]
[1770839178820,10.72498013,79.9,79.821,19.22800134]
[1770839179025,7.45787274,79.917,79.834,19.22800134]
[1770839179223,7.45787274,79.917,79.841,19.22800134]
[1770839180233,10.72498013,79.9,79.841,19.22800134]
[1770839180927,7.51806615,79.9,79.842,30.35055278]
[1770839181233,7.51806615,79.959,79.861,19.07105278]
[1770839181431,11.2647,79.948,79.888,11.273]
[1770839182430,11.2647,79.948,79.888,30.34405278]
[1770839182737,99.98,79.993,79.88,10.72498013]
[1770839182738,18.20814896,79.98,79.889,19.07105278]
[1770839183231,11.2639,79.953,79.889,19.07105278]
[1770839183431,10.72498013,79.96,79.889,19.07105278]
[1770839184131,7.5831009,79.939,79.869,19.07105278]
[1770839184332,7.5831009,79.96,79.881,19.07105278]
[1770839184727,11.2636,79.955,79.897,30.34275278]
[1770839184932,7.5831009,79.96,79.897,19.07105278]
[1770839185332,11.2643,79.951,79.9,11.2713]
[1770839185532,7.5831009,79.96,79.9,11.2713]
[1770839186329,10.72498013,79.95,79.878,19.07105278]
[1770839186530,7.5831009,79.96,79.881,19.07105278]
[1770839187133,11.2653,79.944,79.887,11.2731]
[1770839187331,11.2653,79.944,79.888,19.1463414]
[1770839187935,11.2653,79.944,79.889,11.2728]
[1770839188138,11.2639,79.953,79.889,30.4191414]
[1770839188334,7.5831009,79.96,79.889,30.4191414]
[1770839189224,7.5831009,79.96,79.889,19.1463414]
[1770839189426,11.2664,79.935,79.879,11.2742]
[1770839189630,7.79405261,79.961,79.88,19.1463414]
[1770839190538,7.79405261,79.961,79.898,19.1463414]
[1770839190742,11.2623,79.965,79.898,19.1463414]
[1770839190944,7.82677164,79.98,79.916,11.269]
[1770839191541,10.72498013,79.97,79.907,11.2703]
[1770839191945,10.72498013,79.97,79.898,19.1463414]
[1770839192338,11.2632,79.958,79.906,11.2705]
[1770839193842,8.0125817,79.969,79.898,19.1463414]
[1770839194046,8.0125817,79.949,79.851,19.1463414]
[1770839194239,8.0125817,79.939,79.851,19.1463414]
[1770839194445,11.2704,79.907,79.857,11.2774]
[1770839194644,11.2704,79.907,79.851,19.1463414]
[1770839195041,11.2704,79.907,79.856,11.2775]
[1770839195241,11.2691,79.917,79.857,19.1463414]
[1770839195542,8.07116302,79.96,79.869,19.1463414]
[1770839195849,11.2618,79.968,79.891,19.1463414]
[1770839196047,10.74674422,79.99,79.93,11.267]
[1770839196343,8.52981894,79.989,79.91,19.1463414]
[1770839196735,10.74674422,79.97,79.91,19.1463414]
[1770839197444,8.57106665,79.969,79.91,19.1463414]
[1770839197748,11.2627,79.962,79.913,11.2694]
[1770839197947,8.57106665,79.969,79.91,19.1463414]
[1770839198141,8.57106665,79.969,79.888,19.1463414]
[1770839198346,8.67804286,79.949,79.893,11.2723]
[1770839198947,8.67804286,79.949,79.868,19.1463414]
[1770839199337,8.67804286,79.949,79.882,11.2738]
[1770839199944,11.2662,79.937,79.89,11.2726]
[1770839200146,11.2662,79.937,79.868,19.1463414]
[1770839200447,11.2672,79.93,79.882,11.2738]
[1770839201251,11.266,79.938,79.889,11.2728]
[1770839201451,8.67804286,79.949,79.882,19.1463414]
[1770839201652,10.74674422,79.93,79.851,19.1463414]
[1770839202053,11.2698,79.911,79.864,11.2764]
[1770839202252,8.81365417,79.929,79.864,19.1463414]
[1770839203053,11.2697,79.912,79.864,19.1463414]
[1770839203256,8.81365417,79.929,79.836,19.1463414]
[1770839203756,11.2683,79.922,79.872,11.2752]
[1770839204154,8.81365417,79.929,79.861,19.1463414]
[1770839204360,11.2692,79.916,79.861,19.1463414]
[1770839205356,11.2692,79.916,79.87,11.2755]
[1770839205554,11.2703,79.908,79.861,19.1463414]
[1770839205755,8.81365417,79.929,79.861,19.1463414]
[1770839205955,8.81365417,79.929,79.869,11.2757]
[1770839206160,19.71307473,79.95,79.87,19.1463414]
[1770839206555,19.71307473,79.95,79.886,11.2733]
[1770839206755,19.71307473,79.95,79.87,19.1463414]
[1770839206756,8.9384033,79.949,79.87,19.1463414]
[1770839207552,8.9384033,79.949,79.885,11.2734]
[1770839208060,11.2654,79.943,79.898,11.2715]
[1770839208663,9.01501527,79.967,79.902,19.1463414]
[1770839208966,9.0600401,79.989,79.902,19.1463414]
[1770839209357,9.0600401,79.989,79.926,19.1463414]
[1770839209567,9.05692239,80.011,79.931,19.1463414]
[1770839209758,10.74674422,80.02,79.931,19.1463414]
[1770839209958,11.2565,80.006,79.958,11.2632]
[1770839210161,9.05692239,80.031,79.956,19.1463414]
[1770839210367,8.68833697,80.019,79.956,19.1463414]
[1770839210762,8.68833697,80.019,79.957,11.2633]
[1770839211161,8.68833697,80.019,79.958,18.98702348]
[1770839211358,11.2562,80.008,79.958,18.98702348]
[1770839211563,8.68833697,80.019,79.939,18.98702348]
[1770839211963,11.2583,79.993,79.94,11.2657]
[1770839212358,8.95258588,80.038,79.941,18.98702348]
[1770839212557,11.2553,80.015,79.961,11.2627]
[1770839212766,8.95258588,80.038,79.961,11.2627]
[1770839213367,8.95258588,80.038,79.967,18.98702348]
[1770839213966,11.255,80.017,79.967,30.24882348]
[1770839214370,8.95258588,80.038,79.968,18.98702348]
[1770839215370,11.2524,80.035,79.979,11.2601]
[1770839215567,11.2524,80.035,79.949,156.92]
[1770839215568,9.08109928,80.034,79.949,18.98702348]
[1770839215774,10.74674422,80.04,79.891,18.98702348]